bitfinex/quotes_ETHUSD_20220112
["timestamp","ask_amount","ask_price","bid_price","bid_amount"]
[1641995187311,1.85252212,3362.9,3362.6,1.48749]
[1641995187709,0.00227369,3362.8,3362.6,1.48749]
[1641995187912,0.362,3362.7,3362.6,1.48749]
[1641995188109,0.36370527,3362.7,3362.6,1.48749]
[1641995188511,4.48768,3362.9,3362.7,7.6]
[1641995188512,3.0,3362.9,3362.7,7.6]
[1641995188707,1.48721,3363.5,3362.7,7.61207611]
[1641995188708,0.74356,3363.3,3362.7,7.61207611]
[1641995188912,0.1189,3364.2,3363.4,0.01200934]
[1641995189107,1.78702796,3364.3,3363.6,1.48694]
[1641995189310,1.78702796,3364.3,3363.8,0.7434498]
[1641995189512,0.00852635,3364.2,3363.9,0.04754494]
[1641995189759,0.00852635,3364.2,3364.0,2.16576249]
[1641995189958,1.78702796,3364.3,3364.0,2.16576249]
[1641995189959,0.75145793,3364.1,3364.0,2.16576249]
[1641995190159,3.05,3364.0,3363.9,0.10904038]
[1641995190359,0.362,3364.0,3363.3,1.48716]
[1641995190561,1.48736,3363.6,3362.9,0.7436859]
[1641995190759,1.84936,3363.6,3362.9,2.2309459]
[1641995190961,0.00454739,3363.5,3362.9,2.2309459]
[1641995191259,0.00397896,3363.4,3363.0,1.86154004]
[1641995191463,0.74367,3363.2,3363.0,3.34882004]
[1641995191861,0.00227369,3363.1,3363.0,2.7552342]
[1641995192262,0.00227369,3363.1,3363.0,3.0552342]
[1641995192463,0.00227369,3363.1,3363.0,9.5552342]
[1641995192863,0.00227369,3363.1,3363.0,12.14285704]
[1641995193067,0.74352,3363.6,3363.1,7.6]
[1641995193265,0.74352,3363.6,3363.3,2.973887]
[1641995193504,0.74352,3363.6,3363.4,0.3]
[1641995193505,0.0022737,3363.5,3363.4,0.3]
[1641995193704,0.0022737,3363.5,3363.4,1.78706]
[1641995193909,0.0022737,3363.5,3363.4,0.3]
[1641995194309,0.0022737,3363.5,3363.3,2.5304313]
[1641995194508,0.0022737,3363.5,3363.2,0.3]
[1641995194710,0.00170527,3363.4,3363.2,0.3]
[1641995194910,0.00170527,3363.4,3363.3,3.0]
[1641995194911,0.74536527,3363.4,3363.3,3.0]
[1641995195111,0.74366,3363.4,3363.3,3.0]
[1641995195311,0.74366,3363.4,3363.3,7.15]
[1641995195512,0.74366,3363.4,3363.3,0.3]
[1641995195714,0.74366,3363.4,3363.3,3.3]
[1641995195715,0.69366,3363.4,3363.3,3.3]
[1641995195914,0.69366,3363.4,3363.3,2.70671397]
[1641995196311,1.78708007,3364.2,3363.3,2.70671397]
[1641995196312,0.74348,3363.7,3363.4,0.74345]
[1641995196515,0.74348,3363.7,3363.5,1.87067759]
[1641995196516,0.69348,3363.7,3363.5,1.87067759]
[1641995197559,0.69348,3363.7,3363.4,1.56127954]
[1641995198160,0.69348,3363.7,3363.4,0.81777954]
[1641995198362,0.00545699,3363.6,3363.3,1.41139351]
[1641995198561,0.69348,3363.7,3363.3,1.41139351]
[1641995198761,0.69348,3363.7,3363.0,1.4873721]
[1641995198762,1.4897537,3363.5,3363.0,0.74371]
[1641995198960,1.4897537,3363.5,3362.7,1.60635]
[1641995198962,0.01609821,3363.3,3362.7,1.60635]
[1641995199159,0.362,3363.2,3362.7,1.60635]
[1641995199360,0.362,3363.2,3363.0,3.15052397]
[1641995199564,0.362,3363.2,3363.0,0.74381]
[1641995199761,1.84965,3363.2,3363.1,2.06057405]
[1641995199964,1.84965,3363.2,3363.0,0.74381]
[1641995200162,1.84965,3363.2,3363.0,0.15047932]
[1641995200364,1.84965,3363.2,3363.0,0.74379]
[1641995201216,1.84965,3363.2,3363.0,1.4875]
[1641995201916,1.84965,3363.2,3363.0,1.4375]
[1641995202217,0.1189,3363.1,3362.8,0.00170527]
[1641995202416,0.38989275,3363.0,3362.8,0.00170527]
[1641995202615,3.6189,3362.9,3362.5,1.48765]
[1641995202819,0.38728038,3362.8,3362.5,1.31553218]
[1641995203018,0.38728038,3362.8,3361.5,0.13819997]
[1641995203019,1.60679,3362.7,3361.2,0.1189]
[1641995203220,3.80169275,3362.6,3361.3,2.40671397]
[1641995203419,0.74406,3362.0,3361.3,2.41410348]
[1641995203620,0.362,3361.9,3361.6,1.48814]
[1641995203921,0.4809,3361.9,3361.6,1.48804]
[1641995204118,0.00284212,3361.8,3361.6,1.48804]
[1641995204518,0.74406,3362.0,3361.6,1.48804]
[1641995204519,0.0022737,3361.7,3361.6,1.48804]
[1641995204955,0.362,3363.0,3362.4,1.48753]
[1641995205156,1.0,3362.8,3362.7,2.68605285]
[1641995205355,3.362,3363.4,3363.0,0.74367]
[1641995205556,1.48732,3363.3,3363.0,0.74367]
[1641995205860,3.362,3363.4,3363.3,2.4]
[1641995205861,3.0,3363.4,3363.3,2.4]
[1641995206055,3.0,3363.4,3363.3,2.7]
[1641995206258,0.1189,3364.2,3363.1,2.68197556]
[1641995206455,0.7436,3364.1,3363.2,2.01035419]
[1641995206655,0.00227369,3363.7,3363.2,2.01035419]
[1641995206858,0.01612894,3363.6,3363.2,2.01035419]
[1641995207058,0.00170527,3363.6,3363.5,4.90671397]
[1641995207263,0.1189,3364.1,3363.5,4.90671397]
[1641995207458,0.1189,3364.1,3363.7,1.48712]
[1641995207660,0.74753897,3364.0,3363.7,1.48712]
[1641995207862,0.12513555,3363.9,3363.7,1.48712]
[1641995208061,0.00341054,3363.9,3363.7,1.78712]
[1641995208259,0.00284212,3363.8,3363.7,1.04356]
[1641995209402,0.36484212,3363.8,3363.7,0.3]
[1641995209602,0.36484212,3363.8,3363.6,1.04356]
[1641995209801,1.12084734,3363.8,3363.1,2.23183685]
[1641995210002,1.12084734,3363.8,3362.9,0.61989057]
[1641995210003,5.65,3363.6,3362.9,0.61989057]
[1641995210202,1.00227369,3363.7,3362.0,7.5704]
[1641995210203,0.37927093,3363.5,3362.2,3.5]
[1641995210405,2.89834993,3363.4,3362.8,1.80488515]
[1641995210605,2.89834993,3363.4,3362.8,0.7438]
[1641995210606,0.35447818,3363.3,3362.8,0.7438]
[1641995210803,0.35561503,3363.3,3362.8,0.7438]
[1641995211005,2.23147,3363.1,3362.8,0.7438]
[1641995211203,0.362,3363.0,3362.9,0.743694]
[1641995211407,0.362,3363.0,3362.8,0.7438]
[1641995211603,0.362,3363.0,3362.9,1.92584156]
[1641995212007,0.02975387,3362.9,3362.7,1.48762]
[1641995212260,0.02975387,3362.9,3362.8,2.13298003]
[1641995212261,0.362,3362.9,3362.8,2.13298003]
[1641995212460,0.362,3362.9,3362.8,2.1346853]
[1641995212660,0.362,3362.9,3362.7,1.48762]
[1641995213064,0.362,3362.9,3362.4,0.7439]
[1641995213270,0.362,3362.9,3362.2,1.48784]
[1641995213271,0.74393,3362.7,3362.2,1.48784]
[1641995213463,0.74393,3362.7,3362.5,0.00170527]
[1641995213464,0.48947116,3362.6,3362.5,0.00170527]
[1641995213665,2.59369,3362.6,3362.5,0.00170527]
[1641995213863,2.59369,3362.6,3362.3,0.74395]
[1641995214068,2.59369,3362.6,3362.4,0.74389]
[1641995214965,0.02975387,3362.5,3362.3,0.59519735]
[1641995215265,0.362,3362.4,3362.3,0.74508684]
[1641995215766,0.74387,3362.5,3362.3,0.74508684]
[1641995216405,2.23169,3362.6,3362.4,0.03707376]
[1641995216809,2.23169,3362.6,3362.3,1.48877684]
[1641995217108,2.98741522,3363.8,3362.4,1.0437309]
[1641995217109,0.362,3363.7,3362.4,1.0437309]
[1641995217308,0.362,3363.7,3362.6,1.48719]
[1641995217608,0.362,3363.7,3362.7,1.48722]
[1641995217609,0.00397897,3363.2,3362.7,1.48722]
[1641995218008,0.00341054,3363.1,3362.8,1.71111054]
[1641995218211,1.48716,3363.3,3362.9,6.6]
[1641995218408,1.48716,3363.3,3363.1,0.0324428]
[1641995218908,0.362,3363.7,3363.2,6.9]
[1641995219109,0.362,3363.7,3363.2,7.2]
[1641995219311,0.00284212,3363.6,3363.2,7.2]
[1641995219509,1.48702,3363.7,3363.3,2.9739314]
[1641995219761,2.12122994,3364.2,3363.4,2.61991033]
[1641995219961,0.33416645,3364.2,3363.4,1.72762651]
[1641995220161,0.00284212,3364.1,3363.4,1.72762651]
[1641995220361,0.00284212,3364.1,3363.7,0.7434]
[1641995220562,0.0022737,3364.0,3363.8,1.48667]
[1641995220765,1.48667,3364.4,3363.8,1.48667]
[1641995220960,0.44673068,3365.3,3363.8,1.48667]
[1641995220961,0.1189,3364.9,3363.9,2.43894568]
[1641995221167,0.00284211,3364.5,3363.9,2.73894568]
[1641995221361,0.07785904,3365.4,3364.1,0.00593849]
[1641995221560,0.07785904,3365.4,3364.6,1.66465074]
[1641995221561,0.74321,3364.7,3364.6,1.66465074]
[1641995221768,0.00170527,3364.8,3364.7,4.5]
[1641995221963,0.07785904,3365.4,3364.6,3.15108814]
[1641995222160,0.07785904,3365.4,3364.6,1.4864374]
[1641995222162,0.362,3365.3,3364.6,1.4864374]
[1641995222364,0.362,3365.3,3364.2,0.00170527]
[1641995222365,0.00113685,3364.7,3364.2,0.00170527]
[1641995222572,0.00113685,3364.7,3364.1,2.22972]
[1641995222573,0.74341,3364.5,3364.1,2.22972]
[1641995222767,0.74341,3364.5,3363.6,6.24314568]
[1641995222768,0.54281195,3364.4,3363.6,3.8042]
[1641995222967,0.48193685,3364.4,3363.4,1.48716]
[1641995223166,0.48193685,3364.4,3363.7,0.00284212]
[1641995223416,1.47090978,3364.1,3363.7,0.59704396]
[1641995223610,1.83290978,3364.1,3363.7,0.00284212]
[1641995223810,0.05328036,3364.0,3363.8,0.00227369]
[1641995224011,1.83290978,3364.1,3363.6,1.48713]
[1641995224211,0.362,3364.0,3363.7,0.74361]
[1641995224411,0.36313685,3364.0,3363.7,0.74361]
[1641995224815,0.74359,3363.9,3363.7,0.74361]
[1641995225019,0.362,3363.8,3363.7,0.74361]
[1641995225715,0.363519,3363.8,3363.7,0.74361]
[1641995225915,0.363519,3363.8,3363.7,1.04361]
[1641995226514,0.725519,3363.8,3363.7,1.04361]
[1641995227365,0.52222151,3363.8,3363.7,1.04361]
[1641995228567,0.52222151,3363.8,3363.7,0.1502663]
[1641995230273,0.33576882,3363.8,3363.7,0.1502663]
[1641995230686,0.1189,3364.5,3363.7,0.1502663]
[1641995230687,1.78676153,3364.8,3363.8,7.6]
[1641995230931,1.78676153,3364.8,3364.3,2.15752245]
[1641995231128,1.78676153,3364.8,3364.4,3.8]
[1641995231534,0.362,3365.5,3364.3,2.15752245]
[1641995231535,0.77672743,3364.7,3364.3,2.15752245]
[1641995231736,0.03351743,3364.7,3364.3,2.15752245]
[1641995231933,0.00113685,3364.6,3364.5,2.2298183]
[1641995232733,0.00113685,3364.6,3364.5,1.33641608]
[1641995232935,0.00113685,3364.6,3364.5,0.59314778]
[1641995233135,0.00113685,3364.6,3364.4,0.74318]
[1641995233434,0.74460685,3364.6,3364.4,0.74318]
[1641995234235,0.74460685,3364.6,3364.3,1.48644]
[1641995234436,0.1188,3364.5,3364.3,1.48644]
[1641995235064,0.66340685,3364.6,3364.4,0.3]
[1641995235264,0.05018,3364.5,3364.3,0.89348534]
[1641995235467,0.66340685,3364.6,3364.4,0.00113685]
[1641995235868,0.3,3364.5,3364.4,0.74431685]
[1641995236469,0.25,3364.5,3364.4,0.74431685]
[1641995236668,0.25,3364.5,3364.3,0.89348534]
[1641995236669,0.06796232,3364.4,3364.2,2.97325]
[1641995236869,0.612,3364.3,3364.2,2.97325]
[1641995237175,0.592,3364.3,3364.2,0.00113685]
[1641995237374,0.592,3364.3,3363.8,1.48706]
[1641995237375,0.23,3364.1,3363.8,0.74363]
[1641995237573,0.23,3363.9,3363.8,0.74363]
[1641995237774,0.23,3363.9,3363.2,1.48729]
[1641995237775,2.46083,3363.9,3363.2,3.47349929]
[1641995238070,0.23,3363.7,3363.4,0.00170527]
[1641995238271,0.23,3363.5,3363.4,0.74532527]
[1641995238512,0.592,3363.5,3363.4,2.23252527]
[1641995239111,0.592,3363.5,3363.4,8.70142527]
[1641995239309,0.23,3363.5,3363.4,8.70142527]
[1641995239514,0.23,3363.5,3363.4,9.00142527]
[1641995239716,0.23,3363.5,3363.4,8.70142527]
[1641995240218,0.23,3363.3,3362.5,2.13872012]
[1641995240422,0.07953426,3363.2,3362.6,0.1189]
[1641995240616,0.23,3363.3,3362.6,0.00454738]
[1641995240815,0.23,3363.3,3362.7,0.1189]
[1641995241028,0.23,3363.3,3362.9,0.73978495]
[1641995241217,0.01293604,3364.0,3363.1,7.6]
[1641995241518,0.74339,3363.7,3363.2,0.12003684]
[1641995241817,0.00113685,3363.6,3363.3,0.1189]
[1641995242018,0.07953426,3363.5,3363.0,2.23018]
[1641995242264,0.00170527,3363.5,3363.2,0.74347]
[1641995242466,0.00113684,3363.4,3363.2,1.04347]
[1641995242666,0.74347,3363.3,3363.2,1.04347]
[1641995243266,0.74347,3363.3,3363.2,1.34347]
[1641995244668,0.74347,3363.3,3363.2,0.45016072]
[1641995245469,0.74343,3363.5,3363.2,1.19363072]
[1641995245909,0.00113684,3363.4,3363.3,0.3]
[1641995246612,0.60895247,3363.5,3363.3,0.3]
[1641995247012,0.60895247,3363.5,3363.2,0.89363072]
[1641995247214,0.07953426,3363.4,3363.2,0.30024446]
[1641995247925,3.60895247,3363.5,3363.3,2.51991259]
[1641995248120,3.0,3363.5,3363.3,4.75013259]
[1641995248315,3.0,3363.5,3363.4,9.0185829]
[1641995248519,0.27639994,3364.6,3363.5,7.6]
[1641995248817,0.00625266,3364.5,3364.0,1.48666]
[1641995249115,0.04833688,3364.3,3364.0,1.04333]
[1641995249317,1.49228424,3364.4,3364.0,1.04333]
[1641995249520,0.00454739,3364.2,3364.0,1.04333]
[1641995249769,0.00511582,3364.3,3364.0,1.04333]
[1641995250068,0.74785739,3364.2,3364.0,1.04333]
[1641995250476,0.00397897,3364.1,3364.0,1.04333]
[1641995250875,0.00397897,3364.1,3364.0,0.15002089]
[1641995251070,0.00397897,3364.1,3363.9,0.74336906]
[1641995251071,0.05830608,3364.1,3363.9,0.74336906]
[1641995251271,0.05830608,3364.1,3364.0,1.48666]
[1641995251471,0.74331,3364.2,3364.0,1.48666]
[1641995251670,0.74331,3364.2,3364.0,2.97333]
[1641995251874,0.74331,3364.2,3364.0,1.87333]
[1641995252474,0.74318,3364.6,3364.0,1.87333]
[1641995252673,1.48635,3365.0,3364.2,0.74316]
[1641995252873,0.29202344,3365.0,3364.4,1.48621]
[1641995253078,0.29202344,3365.0,3364.7,2.12843342]
[1641995253517,0.29202344,3365.0,3364.8,0.74312]
[1641995253717,0.1188,3365.4,3364.8,0.74312]
[1641995254119,1.48619,3365.3,3364.8,0.74312]
[1641995254319,1.60499,3365.3,3364.8,0.74312]
[1641995254519,0.01023163,3365.2,3364.8,1.04312]
[1641995254724,0.01023163,3365.2,3365.1,0.74307]
[1641995254922,0.1188,3365.2,3365.1,0.74307]
[1641995255120,0.1188,3365.2,3365.1,1.04307]
[1641995255322,2.22953,3365.6,3365.1,1.04307]
[1641995255323,0.1188,3365.6,3365.1,2.76375152]
[1641995255520,1.90498071,3365.9,3365.1,0.15020754]
[1641995255722,0.01080005,3365.3,3365.1,0.15020754]
[1641995256120,0.01023163,3365.2,3365.1,0.15020754]
[1641995257270,0.01023163,3365.2,3365.1,0.45020754]
[1641995258469,0.01023163,3365.2,3365.0,2.87783817]
[1641995258772,0.0096632,3365.1,3365.0,2.87783817]
[1641995259270,0.0096632,3365.1,3365.0,1.83455016]
[1641995259872,0.0096632,3365.1,3365.0,4.53455016]
[1641995260272,0.0096632,3365.1,3365.0,4.83455016]
[1641995260677,2.339487,3366.0,3365.1,7.6]
[1641995260912,2.220687,3366.0,3365.6,1.48569]
[1641995261113,2.220687,3366.0,3365.7,2.43800831]
[1641995261114,0.00454739,3365.9,3365.7,2.43800831]
[1641995261312,0.00454739,3365.9,3365.7,2.73800831]
[1641995261513,0.00397897,3365.8,3365.7,2.73800831]
[1641995261714,0.00397897,3365.8,3365.7,6.88800831]
[1641995261912,0.00397897,3365.8,3365.7,5.99530526]
[1641995262114,0.00397897,3365.8,3365.7,5.10261815]
[1641995262315,2.10276703,3366.0,3365.7,5.10261815]
[1641995262514,2.10276703,3366.0,3365.7,1.69546815]
[1641995262515,0.07126457,3365.9,3365.7,1.69546815]
[1641995262715,2.10276703,3366.0,3365.7,1.69546815]
[1641995263114,2.10276703,3366.0,3365.8,0.01063161]
[1641995263316,2.10276703,3366.0,3365.7,1.78562]
[1641995263518,2.10276703,3366.0,3365.7,1.04277]
[1641995263519,0.07023129,3365.9,3365.7,1.04277]
[1641995263715,2.10276703,3366.0,3365.7,1.04277]
[1641995263915,2.10276703,3366.0,3365.8,0.74289]
[1641995264115,2.10276703,3366.0,3365.9,0.6]
[1641995264317,2.84565703,3366.0,3365.9,0.3]
[1641995264517,2.10390387,3366.0,3365.9,0.3]
[1641995264978,2.10390387,3366.0,3365.9,0.6]
[1641995266878,2.10390387,3366.0,3365.9,1.91438913]
[1641995267084,2.10390387,3366.0,3365.8,0.45037286]
[1641995267090,1.55990387,3366.0,3365.8,0.45037286]
[1641995267283,1.55990387,3366.0,3365.7,0.74277]
[1641995267882,0.0754037,3365.9,3365.7,0.74277]
[1641995268083,2.30278387,3366.0,3365.7,0.74277]
[1641995268282,2.30278387,3366.0,3365.8,0.3]
[1641995268510,2.30278387,3366.0,3365.8,1.34289]
[1641995268720,5.30278387,3366.0,3365.8,0.6]
[1641995269116,5.30278387,3366.0,3365.7,0.3]
[1641995269117,0.063396,3365.9,3365.7,0.3]
[1641995269314,0.1188,3365.8,3365.7,0.3]
[1641995269513,5.30278387,3366.0,3365.6,0.74296]
[1641995269714,0.74296,3365.8,3365.7,0.00588064]
[1641995270014,0.74296,3365.8,3365.3,1.48584]
[1641995270216,0.1188,3365.9,3365.5,1.48578]
[1641995270415,1.55990387,3366.0,3365.6,0.74294]
[1641995270714,1.55990387,3366.0,3365.7,0.6]
[1641995271116,0.04522716,3365.9,3365.7,0.6]
[1641995271317,1.55990387,3366.0,3365.8,0.00750975]
[1641995271515,1.55990387,3366.0,3365.8,0.3]
[1641995271715,1.55990387,3366.0,3365.8,1.04278]
[1641995271919,1.55990387,3366.0,3365.9,0.3]
[1641995272167,1.55990387,3366.0,3365.8,0.45027348]
[1641995272568,1.55990387,3366.0,3365.8,0.3]
[1641995273370,1.49546556,3366.0,3365.8,0.3]
[1641995273568,2.23832556,3366.0,3365.6,0.74278]
[1641995273771,1.27506231,3366.1,3365.6,0.74278]
[1641995273974,1.27506231,3366.1,3365.7,0.00170527]
[1641995274369,0.02860751,3366.0,3365.7,0.00170527]
[1641995274773,0.77146751,3366.0,3365.7,0.00170527]
[1641995275169,0.74286,3366.0,3365.7,0.00170527]
[1641995275372,0.02860751,3365.9,3365.7,0.00170527]
[1641995275571,0.02860751,3365.9,3365.2,0.59745988]
[1641995275771,0.74303,3365.6,3365.3,1.97590777]
[1641995276014,0.74303,3365.6,3365.3,2.27590777]
[1641995276217,0.00113685,3365.5,3365.2,0.59745988]
[1641995276416,0.02860751,3365.4,3365.2,0.59745988]
[1641995276620,0.00113685,3365.5,3365.2,0.59745988]
[1641995277017,0.74302,3365.4,3365.2,0.59745988]
[1641995277818,0.74302,3365.4,3365.1,0.74305]
[1641995278418,0.74302,3365.4,3364.9,1.33645224]
[1641995278621,0.01591924,3365.3,3364.9,1.33645224]
[1641995278822,0.74302,3365.4,3365.0,0.00170527]
[1641995279019,0.74302,3365.4,3365.1,0.06933403]
[1641995279222,0.74302,3365.4,3365.1,0.81238403]
[1641995279668,2.40113685,3365.5,3365.1,0.76238403]
[1641995279861,2.40113685,3365.5,3365.1,0.69305]
[1641995280060,2.40113685,3365.5,3365.2,0.74296]
[1641995280263,2.40113685,3365.5,3365.2,1.48587]
[1641995280460,2.40113685,3365.5,3365.3,0.3]
[1641995280661,2.40113685,3365.5,3365.3,0.6]
[1641995281060,2.40113685,3365.5,3365.3,0.3]
[1641995281662,2.40113685,3365.5,3365.2,0.74295]
[1641995282059,2.40113685,3365.5,3365.3,0.3]
[1641995283614,2.40113685,3365.5,3365.0,0.00170527]
[1641995284013,2.40113685,3365.5,3364.6,0.89337879]
[1641995284213,2.40113685,3365.5,3365.3,2.220687]
[1641995284214,0.02489123,3365.4,3365.3,2.220687]
[1641995284419,0.00227369,3365.4,3365.3,2.220687]
[1641995284616,3.8,3365.3,3364.7,0.00170527]
[1641995284817,0.74311,3365.0,3364.7,0.00170527]
[1641995285113,0.74311,3365.0,3363.9,3.1173]
[1641995285114,0.1188,3364.9,3364.3,0.00397896]
[1641995285313,0.36313685,3365.2,3364.4,0.03536971]
[1641995285314,0.1188,3365.1,3364.4,0.03536971]
[1641995285514,0.1188,3365.1,3364.1,0.00511581]
[1641995285713,0.1188,3365.1,3364.5,0.00284212]
[1641995285915,0.1188,3365.1,3364.2,0.06085741]
[1641995286313,0.1188,3365.1,3364.3,0.00397896]
[1641995286314,0.74325,3364.7,3364.3,0.00397896]
[1641995286513,0.74325,3364.7,3364.0,2.67434677]
[1641995286514,0.02860751,3364.6,3364.0,1.78555627]
[1641995286716,0.00170527,3364.6,3364.1,0.00113685]
[1641995286918,0.00113684,3364.5,3364.1,0.00113685]
[1641995287374,0.00397896,3365.0,3364.2,0.0661843]
[1641995287575,0.00397896,3365.0,3364.1,1.04437685]
[1641995287576,0.1188,3364.9,3364.1,1.04437685]
[1641995287872,0.00284211,3364.8,3364.2,0.3]
[1641995288075,0.86198,3364.7,3364.2,0.3]
[1641995288274,0.86425369,3364.7,3364.2,0.3]
[1641995288476,0.00170527,3364.6,3364.1,1.78748685]
[1641995288673,0.00170527,3364.6,3364.2,1.04322]
[1641995288875,0.00113684,3364.5,3364.3,0.34151825]
[1641995289073,0.00113684,3364.5,3364.3,0.3]
[1641995289277,0.74319,3364.6,3364.3,0.3]
[1641995289677,0.00113684,3364.5,3364.3,1.04322]
[1641995289876,0.00113684,3364.5,3364.1,1.48753685]
[1641995290075,0.1188,3364.4,3364.1,1.48753685]
[1641995290278,0.7433,3364.3,3364.1,1.48753685]
[1641995290478,0.00113684,3364.5,3364.1,1.48753685]
[1641995290677,0.00113684,3364.5,3364.3,0.04612728]
[1641995291120,0.00113684,3364.5,3364.3,0.64612728]
[1641995291321,0.00113684,3364.5,3364.3,0.6]
[1641995291721,0.00940196,3364.5,3364.3,0.6]
[1641995292223,0.00113684,3364.5,3364.3,0.6]
[1641995292420,0.00113684,3364.5,3364.2,2.86354672]
[1641995292824,0.00113684,3364.5,3364.2,1.19352193]
[1641995292825,0.74322,3364.4,3364.2,1.19352193]
[1641995293021,0.74322,3364.4,3364.2,0.30065386]
[1641995293222,0.00113684,3364.5,3364.2,0.30065386]
[1641995293421,0.00113684,3364.5,3364.3,0.02390384]
[1641995293622,0.00113684,3364.5,3364.2,1.04385386]
[1641995293827,2.97625,3366.0,3364.2,1.04385386]
[1641995293828,0.0033,3366.0,3364.3,9.99163108]
[1641995294022,0.0033,3366.0,3364.9,2.9837172]
[1641995294222,0.00511581,3365.4,3365.3,1.485403]
[1641995294522,0.0033,3366.0,3365.6,0.74268]
[1641995294763,0.0033,3366.0,3365.7,0.04236168]
[1641995295061,0.00284212,3365.9,3365.8,9.74945554]
[1641995296363,0.00284212,3365.9,3365.7,2.82805]
[1641995296566,0.00284212,3365.9,3365.7,1.93500681]
[1641995296766,0.0022737,3365.8,3365.7,1.33500681]
[1641995297165,3.22832,3367.6,3365.7,0.74269]
[1641995297370,0.1188,3365.9,3365.7,0.76904202]
[1641995297572,0.00170527,3366.1,3365.7,1.51190202]
[1641995297767,0.00170527,3366.1,3365.7,3.83551244]
[1641995297965,0.00113684,3366.0,3365.8,1.04271]
[1641995298417,0.1188,3367.1,3365.9,1.4856]
[1641995298418,0.00682108,3367.0,3365.9,1.4856]
[1641995298616,0.74281,3366.4,3366.0,2.22848]
[1641995298822,0.1188,3366.3,3366.0,0.59326357]
[1641995299018,0.12164211,3366.3,3366.0,0.59326357]
[1641995299216,1.48566,3366.6,3365.9,1.4856]
[1641995299217,0.00227369,3366.2,3365.9,1.4856]
[1641995299421,0.00227369,3366.2,3366.0,0.74281]
[1641995299620,0.12277896,3366.5,3366.1,1.48564]
[1641995299922,0.00341054,3366.4,3366.3,0.74277]
[1641995300318,0.00341054,3366.4,3366.3,0.3]
[1641995300521,0.61452,3366.2,3366.1,1.48564]
[1641995300920,0.61679369,3366.2,3366.1,1.48564]
[1641995301727,0.61679369,3366.2,3366.1,1.78564]
[1641995301926,0.61679369,3366.2,3366.1,11.60076736]
[1641995302168,0.61679369,3366.2,3366.1,9.38564]
[1641995302371,0.61679369,3366.2,3366.1,9.68564]
[1641995303271,0.61679369,3366.2,3366.1,9.38564]
[1641995303671,0.61679369,3366.2,3366.1,8.79321048]
[1641995303871,2.220687,3367.0,3366.2,7.6]
[1641995304076,2.97055,3368.7,3366.2,7.6]
[1641995304077,0.1188,3367.8,3366.7,9.0848974]
[1641995304271,0.00397897,3366.9,3366.7,9.0848974]
[1641995304570,0.1188,3368.3,3366.7,9.0848974]
[1641995304571,0.1188,3368.3,3366.8,1.6]
[1641995304773,0.1188,3368.3,3366.8,0.6]
[1641995304972,0.01136847,3368.2,3366.8,2.15930559]
[1641995305175,0.01136847,3368.2,3364.7,0.1112]
[1641995305176,45.00329654,3365.0,3364.7,0.1112]
[1641995305470,0.14730751,3368.1,3365.1,0.0693504]
[1641995305471,0.12950005,3368.1,3365.1,0.0693504]
[1641995305671,0.12950005,3368.1,3366.7,0.74242]
[1641995305917,0.01023162,3368.0,3366.8,0.04219964]
[1641995306114,0.1187,3367.9,3366.5,3.00358428]
[1641995306413,0.00909478,3367.8,3366.6,3.5]
[1641995306614,0.00909478,3367.8,3366.7,3.00698651]
[1641995306813,0.1187,3368.3,3367.2,1.48486]
[1641995306814,0.00852635,3367.7,3367.2,1.48486]
[1641995307028,0.00852635,3367.7,3367.3,0.35635497]
[1641995307216,0.00795793,3367.6,3367.3,0.3]
[1641995307416,0.00795793,3367.6,3367.1,0.3]
[1641995307617,0.00738951,3367.5,3366.6,0.6]
[1641995307819,0.00738951,3367.5,3366.9,0.74252]
[1641995308016,0.00682108,3367.4,3366.9,0.6]
[1641995308414,0.00625266,3367.3,3366.7,1.0]
[1641995308615,0.00625266,3367.3,3366.7,0.40797315]
[1641995308817,0.00568424,3367.2,3366.8,2.52416116]
[1641995309016,0.00568424,3367.2,3367.1,1.48496]
[1641995309215,1.60353,3368.4,3367.2,0.04159617]
[1641995309418,1.60353,3368.4,3367.2,2.57759448]
[1641995309671,0.0096632,3367.9,3367.3,0.0693504]
[1641995309867,0.1187,3368.8,3367.7,0.04739572]
[1641995310068,19.26449359,3369.0,3367.7,5.1]
[1641995310271,0.00227369,3368.3,3368.2,0.74222]
[1641995310475,0.00227369,3368.3,3368.2,1.34222]
[1641995310671,0.00227369,3368.3,3368.2,0.6]
[1641995310872,0.00227369,3368.3,3368.2,0.3]
[1641995311474,0.00227369,3368.3,3368.1,1.460997]
[1641995311873,0.00170527,3368.2,3368.1,0.718757]
[1641995312173,0.00170527,3368.2,3368.1,0.418757]
[1641995312374,0.00170527,3368.2,3368.1,0.118757]
[1641995312577,19.26449359,3369.0,3368.1,2.73280648]
[1641995312778,19.26449359,3369.0,3368.5,1.48397]
[1641995312980,18.38647256,3369.0,3368.7,7.6]
[1641995313429,18.38647256,3369.0,3368.6,0.30170528]
[1641995313633,0.02860751,3368.9,3368.6,0.30170528]
[1641995313832,18.38647256,3369.0,3368.7,0.00113685]
[1641995314233,18.33647256,3369.0,3368.7,0.00113685]
[1641995314840,18.14208387,3369.0,3368.5,0.30158622]
[1641995315036,0.04565057,3369.3,3368.8,8.34205]
[1641995315239,0.04565057,3369.3,3368.9,2.66872943]
[1641995315445,0.00170527,3369.2,3368.6,0.00170528]
[1641995315640,0.03031278,3369.2,3368.6,0.00170528]
[1641995315937,0.00113684,3369.1,3368.4,0.00284212]
[1641995316137,0.00113684,3369.1,3368.5,0.04299218]
[1641995316339,0.00113684,3369.1,3368.8,0.742]
[1641995316538,0.04565057,3369.3,3368.8,0.742]
[1641995316539,0.04565057,3369.3,3368.9,1.48382]
[1641995316738,0.04565057,3369.3,3369.0,0.04745087]
[1641995316937,0.04565057,3369.3,3368.9,1.78495684]
[1641995317172,0.01001703,3369.2,3368.9,1.78495684]
[1641995317375,0.007,3369.6,3368.9,0.00113684]
[1641995317376,0.00265057,3369.6,3368.9,0.00113684]
[1641995317675,0.0022737,3369.5,3369.0,0.02233649]
[1641995317872,0.0022737,3369.5,3368.3,2.66561293]
[1641995318073,0.00170527,3369.4,3368.3,2.67843409]